[Event "1000GM Spring GM-A 2024"]
[Site "New York"]
[Date "2024.03.29"]
[Round "4.4"]
[White "Ostrovskiy, Aleksandr"]
[Black "Bortnyk, Mykola"]
[Result "1-0"]
[ECO "C50"]
[WhiteElo "2411"]
[BlackElo "2453"]
[Annotator "TA"]
[PlyCount "91"]
[EventDate "2024.03.26"]
[EventType "tourn"]
[EventCountry "USA"]
[SourceTitle "playchess.com"]
[Source "ChessBase"]
[SourceQuality "1"]
[TimeControl "5400+30"]

{[%evp 18,91,101,67,85,19,14,31,70,55,75,58,71,68,66,78,60,59,63,54,59,60,60,55,62,78,54,26,43,15,52,0,19,0,19,0,43,0,20,0,14,0,26,29,95,56,100,111,142,-42,-3,-63,0,22,0,0,0,11,87,70,124,70,82,86,1075,1126,1414,1467,1432,1374,29978,29982,29978,29983,5724,5214]} 1. e4 {[%emt 0:10:26]} e5 {[%emt 0:19:03]} 2. Nf3 {[%emt 0:00:11]} Nc6 {[%emt 0:00:30]} 3. Bc4 {[%emt 0:03:24]} d6 {[%emt 0:01:48]} 4. c3 {[%emt 0:06:08]} f5 {[%emt 0:01:50]} 5. d3 {[%emt 0:01:33]} f4 {[%emt 0:00:17]} 6. h4 {[%emt 0:01:02] C50: Hungarian Defence and Giuoco Pianissimo.} Qf6 {[%emt 1:10:02]} 7. Nbd2 {[%emt 0:13:15]} Nge7 {[%emt 0:00:00]} 8. b4 {[%emt 0:02:25]} h6 $146 {[%emt 0:00:00]} ({Predecessor:} 8... g6 9. Bb2 Bg7 10. Qe2 h6 11. O-O-O Bg4 12. Nb3 a5 13. b5 Nb8 14. a4 Nd7 {0-1 Lagunow,R (2378)-Paravyan,D (2653) Titled Tuesday intern op 7th July blitz 2020 (1)}) 9. Bb2 {[%emt 0:07:01]} Be6 {[%emt 0:00:00]} 10. Qa4 {[%emt 0:18:48]} a5 {[%emt 0:00:00]} 11. O-O-O {[%emt 0:13:53]} (11. Bxe6 $16 Qxe6 12. d4) 11... Nc8 $1 $11 {[%emt 0:00:00]} 12. Bxe6 {[%emt 0:03:13]} Nb6 {[%emt 0:00:00]} 13. Qb3 {[%emt 0:03:00]} a4 {[%emt 0:00:00]} 14. Qc2 {[%emt 0:05:22]} Qxe6 {[%emt 0:00:00]} 15. a3 {[%emt 0:00:01]} O-O-O {[%emt 0:00:00]} 16. c4 {[%emt 0:03:00]} Be7 {[%emt 0:00:00]} 17. h5 {[%emt 0:02:44]} Rhg8 {[%emt 0:00:00]} 18. Nb1 {[%emt 0:02:40]} g5 {[%emt 0:00:00]} 19. hxg6 {[%emt 0:00:49]} Rxg6 {[%emt 0:00:00]} 20. Rh2 {[%emt 0:00:01]} Rdg8 {[%emt 0:00:00]} 21. Rg1 $1 {[%emt 0:00:25]} R8g7 {[%emt 0:00:00]} 22. Qe2 {[%emt 0:01:00]} Qg8 {[%emt 0:00:00]} 23. Qf1 {[%emt 0:00:09]} Bf6 {[%emt 0:00:00]} 24. Nbd2 {[%emt 0:00:08]} (24. Nc3 $14) 24... Kb8 {[%emt 0:00:00]} 25. Rgh1 {[%emt 0:00:42]} Rh7 {[%emt 0:00:00]} 26. Kb1 {[%emt 0:00:54]} Nd7 {[%emt 0:00:00]} (26... h5 $5) 27. Rg1 {[%emt 0:00:29]} Rhg7 {[%emt 0:00:00]} 28. Rgh1 {[%emt 0:00:11]} Rh7 {[%emt 0:00:00]} 29. Rg1 {[%emt 0:00:11]} Na7 {[%emt 0:00:00]} 30. Qd1 {[%emt 0:00:42]} b5 {[%emt 0:00:00]} (30... Nb6 $11 {keeps the balance.}) 31. Qe2 {[%emt 0:01:40]} Rhg7 {[%emt 0:00:00]} 32. Rc1 {[%emt 0:00:21]} c5 {[%emt 0:00:00] [#]} (32... Rxg2 $6 33. Rh5 $11) 33. bxc5 $2 {[%emt 0:00:28]} (33. cxb5 $1 $16 {[%cal Ob5b6] Threatens to win with b6!} cxb4 34. axb4) 33... Nxc5 $15 {[%emt 0:00:00]} 34. cxb5 {[%emt 0:00:36]} (34. d4 $11 exd4 35. Bxd4 Bxd4 36. Nxd4) 34... Rb7 {[%emt 0:00:00]} (34... Nxb5 $15 35. Ka1 Rb7 (35... Rxg2 36. Rxh6 R2g6 37. Rxg6 $16)) 35. b6 $11 {[%emt 0:00:30]} ({Not} 35. Nxe5 $2 Bxe5 36. d4 (36. Bxe5 $2 Nxb5 37. Ka1 dxe5 $19) 36... f3 (36... Rxg2 37. Rxg2 Qxg2 38. dxe5 $16) 37. Qxf3 Nxe4 (37... Bxh2 $2 38. dxc5 Rxg2 39. b6 $19) 38. Qxe4 Bxh2 $19) 35... Rxb6 {[%emt 0:00:00]} 36. Nc4 {[%emt 0:00:01]} Rb3 {[%emt 0:00:00]} 37. Nfd2 {[%emt 0:01:01]} Rxd3 {[%emt 0:00:00]} (37... f3 $1 $11 {remains equal.} 38. gxf3 Rxd3) 38. Nxd6 {[%emt 0:00:15]} (38. Nb6 {keeps more tension.} f3 39. Nd7+ Ka8 40. Nxf3 Rb3 41. Nxc5 dxc5 42. Qc4) 38... Qd8 {[%emt 0:00:00]} ({Better is} 38... Rxd6 $14 39. Rxc5 Rxg2 40. Rxg2 (40. Rxh6 Rg1+ 41. Rc1 Rxc1+ 42. Bxc1 Qg7 $14) 40... Qxg2) 39. Rxc5 $16 {[%emt 0:00:25]} Qxd6 {[%emt 0:00:00] [#]} 40. Rc2 $1 {[%emt 0:00:01]} Nb5 $2 {[%emt 0:01:56][%mdl 8192]} (40... Qd7 $16) 41. Rh3 $18 {[%emt 0:00:11]} Rgg3 {[%emt 0:08:38]} 42. fxg3 {[%emt 0:00:03]} f3 {[%emt 0:00:15]} 43. gxf3 {[%emt 0:00:23]} Nxa3+ {[%emt 0:01:20]} 44. Bxa3 {[%emt 0:00:12]} Qxa3 {[%emt 0:00:04]} 45. Rb2+ {[%emt 0:01:05]} Kc8 {[%emt 0:00:17]} 46. Nc4 {[%emt 0:01:04]} 1-0

[Event "1000GM Spring GM-A 2024"]
[Site "New York"]
[Date "2024.03.29"]
[Round "4.5"]
[White "Lomasov, Semyon"]
[Black "Mardov, Dimitar"]
[Result "1/2-1/2"]
[ECO "C55"]
[WhiteElo "2565"]
[BlackElo "2473"]
[Annotator "TA"]
[PlyCount "55"]
[EventDate "2024.03.26"]
[EventType "tourn"]
[EventCountry "USA"]
[SourceTitle "playchess.com"]
[Source "ChessBase"]
[SourceQuality "1"]
[TimeControl "5400+30"]

{[%evp 9,55,22,39,40,35,39,38,32,39,22,21,17,39,21,22,18,37,37,34,29,34,28,37,22,64,40,35,50,92,72,64,92,81,50,80,7,6,0,0,0,0,0,0,-2,-7,-7,-7,0]} 1. e4 {[%emt 0:05:52]} e5 {[%emt 0:00:04]} 2. Nf3 {[%emt 0:00:09]} Nc6 {[%emt 0:00:05]} 3. Bc4 {[%emt 0:00:05]} Nf6 {[%emt 0:00:24]} 4. d3 {[%emt 0:00:17]} h6 {[%emt 0:00:19]} 5. c3 {[%emt 0:03:08]} d6 {[%emt 0:01:14]} 6. a4 {[%emt 0:00:27][%cal Ba2a4,Ba4a5,Ba5a6][%mdl 32]} g6 {[%emt 0:01:20]} 7. a5 {[%emt 0:02:33]} Bg7 {[%emt 0:03:49]} 8. a6 {[%emt 0:01:26] And now axb7 would win. White is slightly better.} O-O {[%emt 0:01:58]} 9. O-O {[%emt 0:02:09]} b6 {[%emt 0:04:59]} 10. Re1 {[%emt 0:02:04]} Ne7 {[%emt 0:09:19]} 11. Nbd2 {[%emt 0:09:42]} c6 {[%emt 0:05:41]} 12. d4 {[%emt 0:15:24]} Qc7 {[%emt 0:16:47]} 13. Bf1 {[%emt 0:07:29]} g5 {[%emt 0:08:36]} 14. h3 {[%emt 0:05:03]} Ng6 {[%emt 0:02:10]} 15. b4 {[%emt 0:03:40]} Re8 {[%emt 0:09:31]} 16. Bb2 {[%emt 0:01:50]} d5 {[%emt 0:05:08]} 17. c4 {[%emt 0:19:16][%cal Bc3c4,Bc4d5,Bd5c6][%mdl 32]} Nxe4 {[%emt 0:07:27]} 18. cxd5 {[%emt 0:08:00]} Nxd2 {[%emt 0:02:58]} 19. Qxd2 {[%emt 0:00:20] Threatens to win with Rac1.} e4 {[%emt 0:02:08][%cal Be5e4,Be4f3][%mdl 32]} 20. dxc6 {[%emt 0:00:51] Strongly threatening d5.} Bf5 {[%emt 0:08:58]} 21. Qc2 {[%emt 0:01:39]} Ne7 {[%emt 0:01:38] [#] Wards off b5} 22. b5 {[%emt 0:01:29]} exf3 $11 {[%emt 0:01:24] [#] The position is equal.} 23. Rxe7 $1 {[%emt 0:00:22]} Qxe7 {[%emt 0:01:52]} 24. Qxf5 {[%emt 0:00:02] Bd3 is the strong threat.} Qb4 $1 {[%emt 0:00:53][%csl LRb2,LRd4]} 25. Rb1 {[%emt 0:02:47] Hoping for Ba1.} Bxd4 {[%emt 0:01:29]} 26. Bxd4 {[%emt 0:01:42]} Qxd4 {[%emt 0:00:01]} 27. Qxf3 {[%emt 0:00:12]} Rad8 {[%emt 0:00:26]} 28. Rc1 {[%emt 0:05:53] Weighted Error Value: White=0.09 (flawless) /Black=0.10 (very precise) .  Mistake:       	White=1     	---        Inaccurate:     	---       	Black=3      OK:         	White=11    	Black=8      Best:        	---       	Black=2      Strong:       	---       	Black=1      Brilliant:      	White=1     	---} 1/2-1/2

[Event "1000GM Spring GM-A 2024"]
[Site "New York"]
[Date "2024.03.30"]
[Round "5.1"]
[White "Mardov, Dimitar"]
[Black "Shlyakhtenko, Robert"]
[Result "1-0"]
[ECO "B42"]
[WhiteElo "2473"]
[BlackElo "2384"]
[Annotator "TA"]
[PlyCount "71"]
[EventDate "2024.03.26"]
[EventType "tourn"]
[EventCountry "USA"]
[SourceTitle "playchess.com"]
[Source "ChessBase"]
[SourceQuality "1"]
[TimeControl "5400+30"]

{[%evp 21,71,56,62,68,60,68,68,63,61,57,70,56,64,58,62,60,64,51,57,59,73,48,47,48,47,31,31,21,30,25,31,32,91,83,173,184,167,181,167,123,129,131,1182,1172,1045,1034,29982,29983,29997,29995,29995,29995]} 1. e4 {[%emt 0:00:02]} c5 {[%emt 0:00:08]} 2. Nf3 {[%emt 0:00:15]} e6 {[%emt 0:00:06]} 3. d4 {[%emt 0:00:35]} cxd4 {[%emt 0:00:07]} 4. Nxd4 {[%emt 0:00:04]} a6 {[%emt 0:00:05]} 5. Bd3 {[%emt 0:00:51]} Nf6 {[%emt 0:00:42]} 6. Qe2 {[%emt 0:02:57]} d6 {[%emt 0:01:29]} 7. O-O {[%emt 0:00:39]} g6 {[%emt 0:01:36]} 8. c4 {[%emt 0:03:46]} Bg7 {[%emt 0:00:17]} 9. Nc3 {[%emt 0:01:55]} O-O {[%emt 0:00:14]} 10. Be3 {[%emt 0:04:33]} Qc7 {[%emt 0:02:30]} 11. Rac1 {[%emt 0:02:42]} Nbd7 {[%emt 0:00:16][%cal Bb8d7,Bd7e5,Be5d3][%mdl 32]} 12. f3 {[%emt 0:08:50]} b6 {[%emt 0:04:39]} 13. Rfd1 {[%emt 0:02:44]} Ne5 {[%emt 0:04:04]} 14. Qd2 {[%emt 0:06:32] White is slightly better.} Nxd3 {[%emt 0:01:22]} 15. Qxd3 {[%emt 0:00:15]} Nd7 {[%emt 0:00:10]} 16. b3 {[%emt 0:03:04]} Re8 {[%emt 0:00:38]} 17. Nde2 {[%emt 0:06:48]} Bf8 {[%emt 0:00:32]} 18. Qd2 {[%emt 0:05:42]} Bb7 {[%emt 0:01:10]} 19. h3 {[%emt 0:01:44]} Rac8 {[%emt 0:01:40]} 20. Kh1 {[%emt 0:01:59]} Ba8 {[%emt 0:04:30]} 21. Bf4 {[%emt 0:02:40][%cal Rf4d6]} Ne5 {[%emt 0:01:02]} 22. Bh6 {[%emt 0:03:47]} Be7 {[%emt 0:10:00]} 23. f4 {[%emt 0:01:23][%cal Bf3f4,Bf4e5][%mdl 32]} Nd7 {[%emt 0:06:33]} 24. Qd4 {[%emt 0:08:30]} Nf6 {[%emt 0:00:44]} 25. Ng3 {[%emt 0:02:30]} Qc5 {[%emt 0:11:55]} 26. e5 {[%emt 0:04:05]} (26. Qxc5 {simplifies} Rxc5 27. Bg5 Bc6 28. a4) 26... Qc6 {[%emt 0:04:16]} 27. Qf2 $16 {[%emt 0:03:50] Active counter play!} (27. exf6 $2 Qxg2#) 27... dxe5 {[%emt 0:19:22]} (27... Nd7 $16 {is a better defense.}) 28. fxe5 $18 {[%emt 0:00:02]} Nd7 {[%emt 0:00:12] [#]} 29. Rxd7 {[%emt 0:08:02][%mdl 512]} Qxd7 {[%emt 0:00:04]} 30. Nce4 {[%emt 0:02:58] Nf6+ would now be deadly.} Qc6 {[%emt 0:25:07][%cal Oe8f8] [#]} 31. Rg1 $1 $40 {[%emt 0:02:53][%mdl 1152] White has strong compensation. Black is in trouble.} ({Don't play} 31. Rf1 $6 Rf8 $11) 31... Red8 $2 {[%emt 0:00:00][%mdl 8192] Loses the game.} (31... f5 $16 32. exf6 Rf8) 32. Nf6+ {[%emt 0:01:21]} Kh8 {[%emt 0:00:00]} 33. Nge4 {[%emt 0:01:21] Excellent horsemanship.} Bc5 {[%emt 0:00:00] [#]} 34. Qh4 $1 {[%emt 0:00:45] White mates.} Bxg1 {[%emt 0:01:28]} (34... Qxe4 35. Nxe4) 35. Bf8 {[%emt 0:00:34][%csl Gf6][%cal Rh4h7]} h5 {[%emt 0:00:27]} 36. Qg5 {[%emt 0:00:08] Weighted Error Value: White=0.06 (flawless) /Black=0.40.  Loses game:     	---       	Black=1      Mistake:       	---       	Black=2      OK:         	White=5     	Black=9      Best:        	White=2     	Black=2      Strong:       	White=1     	---        Brilliant:      	White=1     	---} 1-0

[Event "1000GM Spring GM-A 2024"]
[Site "New York"]
[Date "2024.03.30"]
[Round "5.2"]
[White "Bortnyk, Mykola"]
[Black "Lomasov, Semyon"]
[Result "1/2-1/2"]
[ECO "C01"]
[WhiteElo "2453"]
[BlackElo "2565"]
[Annotator "TA"]
[PlyCount "36"]
[EventDate "2024.03.26"]
[EventType "tourn"]
[EventCountry "USA"]
[SourceTitle "playchess.com"]
[Source "ChessBase"]
[SourceQuality "1"]
[TimeControl "5400+30"]

{[%evp 9,36,-4,0,-9,0,-13,12,-33,-34,-11,-17,-91,0,-2,0,0,0,0,0,0,9,-9,-13,-9,-19,-14,0,-8,0]} 1. e4 {[%emt 0:00:05]} e6 {[%emt 0:00:43]} 2. d4 {[%emt 0:00:54]} d5 {[%emt 0:00:05]} 3. exd5 {[%emt 0:00:36]} exd5 {[%emt 0:00:06]} 4. Nf3 {[%emt 0:00:04]} Nc6 {[%emt 0:01:33]} 5. c4 {[%emt 0:02:10]} Bb4+ {[%emt 0:01:36]} 6. Nc3 {[%emt 0:00:20]} Nf6 {[%emt 0:00:13]} 7. Bg5 {[%emt 0:03:19]} O-O {[%emt 0:07:15]} 8. Bxf6 {[%emt 0:04:58]} Qxf6 {[%emt 0:00:26]} 9. cxd5 {[%emt 0:00:07]} Ne7 {[%emt 0:11:57]} 10. Qb3 {[%emt 0:04:21]} (10. Bc4 $11 {bleibt in der Remisbreite.}) 10... Qd6 {[%emt 0:07:18]} (10... Bxc3+ $17 11. bxc3 Re8) 11. Bc4 $11 {[%emt 0:00:08] Die Stellung ist ausgeglichen.} b6 {[%emt 0:18:40]} 12. O-O {[%emt 0:05:22]} Bxc3 {[%emt 0:00:08]} 13. bxc3 {[%emt 0:01:54]} Bb7 {[%emt 0:00:06]} 14. Rfd1 {[%emt 0:00:12]} Rad8 {[%emt 0:01:09]} 15. Rac1 {[%emt 0:00:25]} Nxd5 {[%emt 0:05:56]} 16. Bxd5 {[%emt 0:00:14]} Bxd5 {[%emt 0:01:39]} 17. c4 {[%emt 0:00:06]} Be4 {[%emt 0:04:43]} 18. d5 {[%emt 0:02:31]} Bxf3 {[%emt 0:02:25] Gewichteter Fehlerwert: Weiß=0.19 (sehr präzise) /Schwarz=0.17 (sehr präzise) .  Fehler:       	Weiß=1     	Schwarz=1     Ungenau:       	Weiß=1     	---        OK:         	Weiß=3     	Schwarz=4     Bester:       	Weiß=2     	---} 1/2-1/2

[Event "1000GM Spring GM-A 2024"]
[Site "New York"]
[Date "2024.03.30"]
[Round "5.3"]
[White "Huston, Gus"]
[Black "Ostrovskiy, Aleksandr"]
[Result "1-0"]
[ECO "D35"]
[WhiteElo "2401"]
[BlackElo "2411"]
[Annotator "TA"]
[PlyCount "113"]
[EventDate "2024.03.26"]
[EventType "tourn"]
[EventCountry "USA"]
[SourceTitle "playchess.com"]
[Source "ChessBase"]
[SourceQuality "1"]
[TimeControl "5400+30"]

{[%evp 24,112,43,25,22,14,27,29,34,20,40,0,0,0,0,0,38,40,41,48,43,25,35,27,35,23,35,23,22,21,38,24,52,27,105,0,0,0,0,0,0,0,84,96,92,81,98,112,106,103,179,187,203,167,338,334,321,294,289,285,338,347,347,339,339,340,340,340,340,340,333,317,425,372,6254,676,1612,835,489,302,1356,1312,1392,1202,1124,1123,1147,1102,29973,29973,29999]} 1. d4 {[%emt 0:00:02]} d5 {[%emt 0:07:49]} 2. c4 {[%emt 0:00:03]} e6 {[%emt 0:00:10]} 3. Nc3 {[%emt 0:00:23]} Nf6 {[%emt 0:02:53]} 4. cxd5 {[%emt 0:00:05]} exd5 {[%emt 0:01:27]} 5. Bg5 {[%emt 0:00:05]} c6 {[%emt 0:04:53]} 6. e3 {[%emt 0:00:51]} h6 {[%emt 0:04:27]} 7. Bh4 {[%emt 0:00:11]} Be7 {[%emt 0:00:08]} 8. Bd3 {[%emt 0:00:05]} O-O {[%emt 0:00:34]} 9. Nge2 {[%emt 0:04:40] D35: Queen's Gambit Declined: Exchange Variation.} Ne4 {[%emt 0:07:05]} 10. Bxe7 {[%emt 0:00:13]} Qxe7 {[%emt 0:00:05]} 11. Bxe4 {[%emt 0:00:04]} dxe4 {[%emt 0:00:04]} 12. Qc2 {[%emt 0:00:05]} Bf5 {[%emt 0:19:14]} 13. a3 {[%emt 0:08:12]} Nd7 {[%emt 0:01:27]} 14. O-O {[%emt 0:01:05]} Bh7 $146 {[%emt 0:03:41]} ({Predecessor:} 14... Nb6 15. Ng3 Bg6 16. Qb3 Rad8 17. Rfc1 Kh8 18. Qb4 Qe6 19. Na4 Nxa4 20. Qxa4 a6 {1-0 Zhao,C (2275)-Akin,K (1974) Wch U20 57th 2018 (8)}) 15. b4 {[%emt 0:01:03]} Rac8 {[%emt 0:05:43]} 16. Rfc1 {[%emt 0:01:14]} Kh8 {[%emt 0:08:51]} 17. Qa4 {[%emt 0:01:44]} a6 {[%emt 0:01:29]} 18. Qa5 {[%emt 0:09:49]} f5 {[%emt 0:03:38]} 19. Na4 {[%emt 0:18:05]} Nf6 {[%emt 0:04:24]} 20. Qc5 {[%emt 0:02:22]} Qf7 {[%emt 0:09:20]} 21. Nb6 {[%emt 0:00:25]} Rcd8 {[%emt 0:00:38]} 22. a4 {[%emt 0:04:07]} Nd5 {[%emt 0:06:16]} 23. Nxd5 {[%emt 0:04:55]} Rxd5 {[%emt 0:02:58]} 24. Qc4 {[%emt 0:00:19]} Qd7 {[%emt 0:00:51]} 25. Rab1 {[%emt 0:01:28]} Bg8 {[%emt 0:02:25]} 26. Qc2 {[%emt 0:00:23]} Rd6 {[%emt 0:00:29]} 27. h3 {[%emt 0:01:21]} b5 {[%emt 0:01:12]} 28. axb5 {[%emt 0:01:15]} axb5 {[%emt 0:00:03]} (28... cxb5 $11 29. Qc7 Bc4 30. Qxd7 Rxd7) 29. Ra1 {[%emt 0:00:18]} ({White has to play} 29. Qc5 $1 $16) 29... Bc4 $11 {[%emt 0:00:17]} 30. Ra6 {[%emt 0:02:45]} Rdf6 {[%emt 0:00:37]} 31. Nf4 {[%emt 0:04:08]} Qe8 {[%emt 0:00:57]} 32. Qd1 {[%emt 0:00:37]} Bf7 {[%emt 0:01:52]} (32... Kh7 $11) 33. d5 $1 $16 {[%emt 0:01:00]} Bxd5 {[%emt 0:00:29]} 34. Nxd5 {[%emt 0:00:28]} cxd5 {[%emt 0:00:02]} 35. Rxf6 {[%emt 0:00:19]} Rxf6 {[%emt 0:00:01]} 36. Qxd5 {[%emt 0:00:02]} Kh7 {[%emt 0:01:17]} (36... f4 $16) 37. g3 {[%emt 0:00:49]} Qh5 {[%emt 0:00:30]} 38. Rc8 {[%emt 0:00:46]} (38. Qxb5 $6 Qxh3 39. Rd1 Qg4 $16) 38... Rf7 $2 {[%emt 0:00:39]} (38... Qf7 {was worth a try.} 39. Qxb5 Rd6 40. Rh8+ Kg6 (40... Kxh8 $2 {too greedy.} 41. Qb8+ Kh7 42. Qxd6 $18)) 39. h4 {[%emt 0:01:31]} (39. Qxb5 Qd1+ 40. Qf1 Rd7 $18) 39... Qg6 {[%emt 0:00:33]} 40. Qxb5 {[%emt 0:04:51]} Qd6 {[%emt 0:00:27]} 41. Qe8 {[%emt 0:06:23]} Qd1+ {[%emt 0:00:27]} 42. Kh2 {[%emt 0:00:02]} Qe2 {[%emt 0:00:24]} 43. Qg8+ $1 {[%emt 0:01:03]} (43. Qxf7 Qxf2+ 44. Kh3 Qf1+ 45. Kh2 Qf2+ 46. Kh3 Qf1+ 47. Kh2 Qe2+ (47... Qf2+ 48. Kh3 $11) 48. Kg1 Qe1+ 49. Kg2 Qe2+ 50. Kg1 Qd1+ 51. Kh2 Qe2+ 52. Kg1 $11) 43... Kg6 {[%emt 0:00:02] [#]} 44. Rc6+ $1 {[%emt 0:00:28]} Rf6 {[%emt 0:00:10]} 45. Rxf6+ {[%emt 0:00:25]} Kxf6 {[%emt 0:00:01]} 46. Qf8+ {[%emt 0:00:24]} Kg6 {[%emt 0:01:55] [#]} 47. Qd6+ $1 {[%emt 0:00:05]} Kh5 {[%emt 0:00:27]} 48. Qf4 {[%emt 0:00:20]} g6 $2 {[%emt 0:00:34]} (48... Kg6 49. Kg2 Qb5 50. Qd6+ Kf7 51. Qc7+ Kg8 52. Qd8+ Kf7) 49. Kg2 {[%emt 0:01:32]} (49. g4+ $142 Qxg4 50. Qxg4+ Kxg4 51. b5) 49... Qc4 {[%emt 0:00:32]} 50. Qe5 {[%emt 0:05:01]} Qe2 {[%emt 0:00:31]} 51. Qa1 {[%emt 0:00:16]} Kg4 $2 {[%emt 0:00:30]} (51... g5 52. hxg5 hxg5) 52. Qf1 $18 {[%emt 0:00:11]} Qc2 {[%emt 0:00:29]} 53. b5 {[%emt 0:00:38]} f4 {[%emt 0:01:03]} 54. gxf4 {[%emt 0:00:20]} Qb3 {[%emt 0:00:00]} 55. h5 {[%emt 0:02:47]} gxh5 {[%emt 0:00:25]} 56. Qh1 {[%emt 0:00:10]} Qxb5 {[%emt 0:00:33]} 57. Qh3# {[%emt 0:00:07]} 1-0

[Event "1000GM Spring GM-A 2024"]
[Site "New York"]
[Date "2024.03.30"]
[Round "5.4"]
[White "Lu, Maximillian"]
[Black "Zilka, Stepan"]
[Result "0-1"]
[ECO "E16"]
[WhiteElo "2375"]
[BlackElo "2589"]
[Annotator "TA"]
[PlyCount "54"]
[EventDate "2024.03.26"]
[EventType "tourn"]
[EventCountry "USA"]
[SourceTitle "playchess.com"]
[Source "ChessBase"]
[SourceQuality "1"]
[TimeControl "5400+30"]

{[%evp 12,54,23,25,37,28,49,27,25,20,24,2,15,0,0,0,12,-15,0,-8,20,8,17,17,12,2,9,10,26,0,0,0,0,0,0,0,0,0,0,0,0,-247,-250,-242,-241]} 1. d4 {[%emt 0:00:01]} Nf6 {[%emt 0:01:01]} 2. c4 {[%emt 0:00:03]} e6 {[%emt 0:00:06]} 3. Nf3 {[%emt 0:00:35]} b6 {[%emt 0:00:05]} 4. g3 {[%emt 0:00:07]} Bb7 {[%emt 0:00:05]} 5. Bg2 {[%emt 0:00:02]} Bb4+ {[%emt 0:00:07]} 6. Bd2 {[%emt 0:01:04]} c5 {[%emt 0:00:05]} 7. O-O {[%emt 0:00:49][%cal Od4d5]} Bxd2 {[%emt 0:00:03]} 8. Qxd2 {[%emt 0:01:41]} cxd4 {[%emt 0:00:05]} 9. Qxd4 {[%emt 0:00:17]} Nc6 {[%emt 0:00:05] White has an edge.} 10. Qf4 {[%emt 0:03:06]} Qb8 {[%emt 0:00:06]} 11. Nc3 {[%emt 0:02:52]} Qxf4 {[%emt 0:01:23]} 12. gxf4 {[%emt 0:00:07]} Ke7 {[%emt 0:00:49]} 13. Rfd1 {[%emt 0:02:38]} Rhd8 {[%emt 0:00:25]} 14. Ne5 {[%emt 0:05:18]} Ne8 {[%emt 0:02:58]} 15. Rac1 {[%emt 0:09:41]} f6 {[%emt 0:02:09]} 16. Nd3 {[%emt 0:00:20]} Na5 {[%emt 0:01:51][%cal Ob7g2]} 17. Bxb7 {[%emt 0:06:56]} Nxb7 {[%emt 0:00:07]} 18. Kg2 {[%emt 0:00:21]} Ned6 {[%emt 0:02:42]} 19. b3 {[%emt 0:00:21]} Rac8 {[%emt 0:00:42]} 20. Rd2 {[%emt 0:04:12]} g5 {[%emt 0:04:33]} 21. Rcd1 {[%emt 0:12:15]} gxf4 {[%emt 0:05:00]} 22. Nxf4 {[%emt 0:00:02]} Nxc4 {[%emt 0:00:32]} 23. bxc4 {[%emt 0:06:15]} Rxc4 {[%emt 0:00:05]} 24. Ncd5+ {[%emt 0:00:17]} exd5 {[%emt 0:00:09]} 25. Nxd5+ {[%emt 0:00:02]} Kf7 {[%emt 0:01:25]} 26. Nxb6 $2 {[%emt 0:06:02] [#]} axb6 $19 {[%emt 0:00:09]} 27. Rxd7+ {[%emt 0:00:05]} Ke8 {[%emt 0:00:04] Weighted Error Value: White=0.30/Black=0.07 (flawless) .  Loses game:     	White=1     	---        Inaccurate:     	White=2     	Black=1      OK:         	White=3     	Black=11     Best:        	White=1     	Black=1} 0-1

[Event "1000GM Spring GM-A 2024"]
[Site "New York"]
[Date "2024.03.30"]
[Round "5.5"]
[White "Novik, Maxim"]
[Black "Sethuraman, Sandeep"]
[Result "1/2-1/2"]
[ECO "B87"]
[WhiteElo "2415"]
[BlackElo "2381"]
[Annotator "TA"]
[PlyCount "43"]
[EventDate "2024.03.26"]
[EventType "tourn"]
[EventCountry "USA"]
[SourceTitle "playchess.com"]
[Source "ChessBase"]
[SourceQuality "1"]
[TimeControl "5400+30"]

{[%evp 23,43,0,10,0,0,0,0,0,0,0,0,-110,-114,-261,-263,-250,-259,-281,-285,-335,-165,-150]} 1. e4 {[%emt 0:00:03]} c5 {[%emt 0:01:24]} 2. Nf3 {[%emt 0:01:36]} d6 {[%emt 0:00:06]} 3. d4 {[%emt 0:01:38]} cxd4 {[%emt 0:00:06]} 4. Nxd4 {[%emt 0:00:02]} Nf6 {[%emt 0:00:06]} 5. Nc3 {[%emt 0:00:05]} a6 {[%emt 0:00:03]} 6. Bc4 {[%emt 0:00:51]} e6 {[%emt 0:01:12]} 7. O-O {[%emt 0:00:29]} b5 {[%emt 0:04:52]} 8. Bb3 {[%emt 0:00:17]} Be7 {[%emt 0:00:08]} 9. Qf3 {[%emt 0:00:36]} Qc7 {[%emt 0:10:55]} 10. Qg3 {[%emt 0:00:38]} O-O {[%emt 0:01:11]} 11. Bh6 {[%emt 0:00:20]} Ne8 {[%emt 0:00:13]} 12. Rad1 {[%emt 0:00:31]} Bd7 {[%emt 0:10:24]} 13. h4 {[%emt 0:22:36]} Nc6 {[%emt 0:10:08]} 14. Bg5 {[%emt 0:02:22]} Nf6 {[%emt 0:02:05]} 15. Bh6 {[%emt 0:09:22] The position is equal.} Ne8 {[%emt 0:00:08]} 16. Bg5 {[%emt 0:00:34]} Nf6 {[%emt 0:00:55]} 17. Nf5 {[%emt 0:57:00]} exf5 $17 {[%emt 0:55:04]} 18. Bxf6 {[%emt 0:00:30] Loses the game.} (18. Nd5 $17 {was forced.} f4 (18... Nxd5 19. exd5 Bxg5 20. dxc6 $17) 19. Nxe7+ Nxe7 20. Qxf4) 18... Bxf6 $19 {[%emt 0:00:30]} 19. Nd5 Qd8 {[%emt 0:00:30] And now ...Be5 would win.} 20. Nxf6+ {[%emt 0:01:00]} Qxf6 {[%emt 0:00:30]} 21. Rxd6 {[%emt 0:00:30]} Qe7 {[%emt 0:00:30]} ({Weaker is} 21... Qxb2 22. Rxd7 Nd4 23. Re1 Nxb3 24. Qxb3 $11) (21... Nd4 $142 {Strongly threatening ...Ne2+.} 22. Qh2 Be6) 22. exf5 {[%emt 0:00:00] Weighted Error Value: White=0.42/Black=0.35.  Mistake:       	White=2     	Black=1      OK:         	White=5     	Black=2      Best:        	---       	Black=1} 1/2-1/2